[Event "IV Jugando con las Estrellas 2019"]
[Site "Santa Cruz de la Palma"]
[Date "2019.08.11"]
[Round "4.8"]
[White "Alonso Bouza, Julio Javier"]
[Black "Ambartsumova, Karina"]
[Result "1-0"]
[ECO "C65"]
[WhiteElo "2393"]
[BlackElo "2359"]
[Annotator "ChessBase"]
[PlyCount "81"]
[EventDate "2019.08.09"]
[EventType "swiss"]
[EventCountry "ESP"]
[SourceTitle "playchess.com"]
[Source "ChessBase"]
[SourceQuality "1"]
[TimeControl "5400+30"]

1. e4 {[%emt 0:00:00]} e5 {[%emt 0:00:02]} 2. Nf3 {[%emt 0:00:00]} Nc6 {[%emt 0:00:32]} 3. Bb5 {[%emt 0:00:00]} Nf6 {[%emt 0:00:59]} 4. Qe2 {[%emt 0:00:02]} Bd6 {[%emt 0:02:51]} 5. c3 {[%emt 0:00:19]} O-O {[%emt 0:01:48]} 6. d3 {[%emt 0:02:03]} Re8 {[%emt 0:01:50]} 7. h3 {[%emt 0:06:22]} Bf8 {[%emt 0:05:22]} 8. Bg5 {[%emt 0:05:37]} d6 {[%emt 0:08:58]} 9. Nbd2 {[%emt 0:07:55]} Bd7 {[%emt 0:05:38]} 10. a4 {[%emt 0:00:23]} h6 {[%emt 0:05:07]} 11. Bxf6 {[%emt 0:08:01]} Qxf6 {[%emt 0:00:24]} 12. Nf1 {[%emt 0:00:39]} d5 {[%emt 0:12:18]} 13. Ne3 {[%emt 0:07:08]} d4 {[%emt 0:00:50]} 14. Ng4 {[%emt 0:09:10]} Qd6 {[%emt 0:02:49]} 15. O-O {[%emt 0:00:51]} h5 {[%emt 0:15:16]} 16. Ngh2 {[%emt 0:00:25]} dxc3 {[%emt 0:02:50]} 17. bxc3 {[%emt 0:00:02]} a6 {[%emt 0:00:04]} 18. Bc4 {[%emt 0:01:03]} Be6 {[%emt 0:00:11]} 19. Bxe6 {[%emt 0:12:50]} Qxe6 {[%emt 0:00:03]} 20. Ng5 {[%emt 0:00:59]} Qg6 {[%emt 0:00:51]} 21. h4 {[%emt 0:00:28]} f6 {[%emt 0:07:31]} 22. Nh3 {[%emt 0:05:05]} Rad8 {[%emt 0:02:27]} 23. f4 {[%emt 0:05:02]} Bd6 {[%emt 0:04:10]} 24. f5 {[%emt 0:01:44]} Qh6 {[%emt 0:00:00]} 25. Rf3 {[%emt 0:02:34]} Rd7 {[%emt 0:00:52]} 26. Kh1 {[%emt 0:02:30]} Red8 {[%emt 0:01:42]} 27. Rg3 {[%emt 0:03:04]} Bc5 {[%emt 0:00:11]} 28. Rf1 {[%emt 0:04:05]} Kf8 {[%emt 0:01:28]} 29. Ng5 {[%emt 0:04:42]} fxg5 {[%emt 0:00:36]} 30. hxg5 {[%emt 0:00:01]} Qh8 {[%emt 0:01:59]} 31. Rh3 {[%emt 0:00:30]} Qg8 {[%emt 0:05:01]} 32. Rxh5 {[%emt 0:03:37]} Rxd3 {[%emt 0:00:22]} 33. Qg4 {[%emt 0:00:42]} Ke8 {[%emt 0:03:06]} 34. f6 {[%emt 0:06:49]} gxf6 {[%emt 0:00:13]} 35. g6 {[%emt 0:00:58]} Be7 {[%emt 0:07:53]} 36. g7 {[%emt 0:00:29]} Kf7 {[%emt 0:00:06]} 37. Qf5 {[%emt 0:01:40]} Kxg7 {[%emt 0:00:38]} 38. Ng4 {[%emt 0:00:34]} Rd1 {[%emt 0:00:54]} 39. Rxd1 {[%emt 0:00:07]} Rxd1+ {[%emt 0:00:01]} 40. Kh2 {[%emt 0:00:01]} Rf1 {[%emt 0:01:26]} 41. Qxf1 {[%emt 0:00:10]} 1-0

[Event "IV Jugando con las Estrellas 2019"]
[Site "Santa Cruz de la Palma"]
[Date "2019.08.12"]
[Round "5.1"]
[White "Bressac, Stephane"]
[Black "Kurajica, Bojan"]
[Result "0-1"]
[ECO "B30"]
[WhiteElo "2348"]
[BlackElo "2494"]
[Annotator "ChessBase"]
[PlyCount "56"]
[EventDate "2019.08.09"]
[EventType "swiss"]
[EventCountry "ESP"]
[SourceTitle "playchess.com"]
[Source "ChessBase"]
[SourceQuality "1"]
[TimeControl "5400+30"]

1. e4 {[%emt 0:00:03]} c5 {[%emt 0:00:00]} 2. Nf3 {[%emt 0:00:08]} Nc6 {[%emt 0:00:00]} 3. Bb5 {[%emt 0:00:04]} e6 {[%emt 0:00:00]} 4. O-O {[%emt 0:00:49]} Nge7 {[%emt 0:00:08]} 5. d4 {[%emt 0:00:37]} cxd4 {[%emt 0:00:07]} 6. Nxd4 {[%emt 0:00:04]} Ng6 {[%emt 0:00:14]} 7. Be3 {[%emt 0:00:34]} Be7 {[%emt 0:02:36]} 8. Be2 {[%emt 0:00:21]} O-O {[%emt 0:01:08]} 9. c4 {[%emt 0:00:13]} b6 {[%emt 0:01:22]} 10. Nc3 {[%emt 0:00:06]} Bb7 {[%emt 0:00:06]} 11. Nb3 {[%emt 0:00:35]} f5 {[%emt 0:16:05]} 12. exf5 {[%emt 0:00:12]} Rxf5 {[%emt 0:00:04]} 13. f4 {[%emt 0:00:05]} Rf7 {[%emt 0:00:10]} 14. g3 {[%emt 0:00:07]} Bf8 {[%emt 0:03:25]} 15. Ne4 {[%emt 0:04:30]} d5 {[%emt 0:01:25]} 16. Ng5 {[%emt 0:00:52]} Rf6 {[%emt 0:00:11]} 17. cxd5 {[%emt 0:04:52]} exd5 {[%emt 0:00:43]} 18. Bd3 {[%emt 0:04:22]} h6 {[%emt 0:02:29]} 19. Nf3 {[%emt 0:11:50]} Qe8 {[%emt 0:00:19]} 20. Bd2 {[%emt 0:01:25]} Bd6 {[%emt 0:05:33]} 21. Re1 {[%emt 0:01:00]} Qf7 {[%emt 0:02:14]} 22. Bc3 {[%emt 0:05:16]} d4 {[%emt 0:00:18]} 23. Qe2 {[%emt 0:02:32]} Kh8 {[%emt 0:06:51]} 24. Bc4 {[%emt 0:01:57]} Nxf4 {[%emt 0:00:48]} 25. gxf4 {[%emt 0:09:22]} Qg6+ {[%emt 0:00:15]} 26. Kh1 {[%emt 0:00:51]} dxc3 {[%emt 0:01:01]} 27. Bd3 {[%emt 0:00:04]} Qh5 {[%emt 0:07:28]} 28. Qe4 {[%emt 0:01:29]} g6 {[%emt 0:00:10]} 0-1

[Event "IV Jugando con las Estrellas 2019"]
[Site "Santa Cruz de la Palma"]
[Date "2019.08.12"]
[Round "5.7"]
[White "Planas Torrea, Francisco Javier"]
[Black "Minzer, Claudio Javier"]
[Result "0-1"]
[ECO "B22"]
[WhiteElo "2084"]
[BlackElo "2446"]
[Annotator "NA RC"]
[PlyCount "72"]
[EventDate "2019.08.09"]
[EventType "swiss"]
[EventCountry "ESP"]
[SourceTitle "playchess.com"]
[Source "ChessBase"]
[SourceQuality "1"]
[TimeControl "5400+30"]

1. e4 {[%emt 0:00:00]} c5 {[%emt 0:00:00]} 2. c3 {[%emt 0:00:04]} Nf6 {[%emt 0:00:26]} 3. e5 {[%emt 0:00:27]} Nd5 {[%emt 0:00:05]} 4. d4 {[%emt 0:00:24]} cxd4 {[%emt 0:00:05]} 5. Nf3 {[%emt 0:00:30]} e6 {[%emt 0:05:04]} 6. cxd4 {[%emt 0:00:29]} d6 {[%emt 0:00:14]} 7. Nc3 {[%emt 0:01:18]} Nxc3 {[%emt 0:04:07]} 8. bxc3 {[%emt 0:00:13]} Qc7 {[%emt 0:00:09]} 9. Qb3 {[%emt 0:04:10]} Nd7 {[%emt 0:02:24]} 10. Ba3 {[%emt 0:02:21]} dxe5 {[%emt 0:02:20]} 11. Bxf8 {[%emt 0:00:30]} Kxf8 {[%emt 0:01:12]} 12. Bd3 {[%emt 0:04:44]} g6 {[%emt 0:04:23]} 13. O-O {[%emt 0:02:00]} b6 {[%emt 0:05:21]} 14. Ng5 {[%emt 0:03:22]} Kg7 {[%emt 0:07:38]} 15. Qxe6 {[%emt 0:01:41]} Nc5 {[%emt 0:01:30]} 16. Qxf7+ {[%emt 0:03:32]} Qxf7 {[%emt 0:00:08]} 17. Nxf7 {[%emt 0:00:22]} Nxd3 {[%emt 0:00:26]} 18. Nxh8 {[%emt 0:00:31]} e4 {[%emt 0:05:29]} 19. Nxg6 {[%emt 0:05:55]} hxg6 {[%emt 0:00:11]} 20. a4 {[%emt 0:04:38]} Be6 {[%emt 0:01:22]} 21. Rfd1 {[%emt 0:11:15]} Bc4 {[%emt 0:02:03]} 22. Rd2 {[%emt 0:04:38]} Re8 {[%emt 0:01:43]} 23. g3 {[%emt 0:07:13]} Kf6 {[%emt 0:04:31]} 24. h4 {[%emt 0:02:41]} Kf5 {[%emt 0:02:03]} 25. Rc2 {[%emt 0:20:49]} Kg4 {[%emt 0:08:08]} 26. Rb1 {[%emt 0:14:42]} e3 {[%emt 0:06:02]} 27. fxe3 {[%emt 0:00:15]} Rxe3 {[%emt 0:00:08]} 28. Kh2 {[%emt 0:00:32]} Ne1 {[%emt 0:01:27]} 29. Rf2 {[%emt 0:02:02]} Nf3+ {[%emt 0:00:59]} 30. Kg2 {[%emt 0:00:39]} Bd5 {[%emt 0:03:27]} 31. Rb5 {[%emt 0:01:09]} Nxh4+ {[%emt 0:02:44]} 32. Kh2 {[%emt 0:00:11]} Nf3+ {[%emt 0:00:57]} 33. Kg2 {[%emt 0:00:01]} Be4 {[%emt 0:01:35]} 34. Rb4 {[%emt 0:01:00]} Ne1+ {[%emt 0:03:56]} 35. Kh2 {[%emt 0:00:12]} Rxg3 {[%emt 0:00:41]} 36. d5 {[%emt 0:00:37]} Rh3+ {[%emt 0:00:13]} 0-1

[Event "IV Jugando con las Estrellas 2019"]
[Site "Santa Cruz de la Palma"]
[Date "2019.08.14"]
[Round "6.1"]
[White "Kurajica, Bojan"]
[Black "Pile, Richard"]
[Result "1/2-1/2"]
[ECO "A46"]
[WhiteElo "2494"]
[BlackElo "2416"]
[Annotator "ChessBase"]
[PlyCount "40"]
[EventDate "2019.08.09"]
[EventType "swiss"]
[EventCountry "ESP"]
[SourceTitle "playchess.com"]
[Source "ChessBase"]
[SourceQuality "1"]
[TimeControl "5400+30"]

1. d4 {[%emt 0:00:19]} Nf6 {[%emt 0:00:00]} 2. Nf3 {[%emt 0:00:06]} e6 {[%emt 0:00:00]} 3. g3 {[%emt 0:00:10]} b5 {[%emt 0:00:08]} 4. Qd3 {[%emt 0:00:33]} b4 {[%emt 0:05:58]} 5. a3 {[%emt 0:00:51]} Ba6 {[%emt 0:02:10]} 6. Qd1 {[%emt 0:03:26]} bxa3 {[%emt 0:08:14]} 7. b3 {[%emt 0:00:59]} Bb7 {[%emt 0:00:30]} 8. Bg2 {[%emt 0:00:19]} c5 {[%emt 0:00:59]} 9. Bxa3 {[%emt 0:00:37]} Na6 {[%emt 0:00:06]} 10. O-O {[%emt 0:01:59]} Be7 {[%emt 0:05:29]} 11. e3 {[%emt 0:09:32]} O-O {[%emt 0:00:16]} 12. Qe2 {[%emt 0:00:10]} Qb6 {[%emt 0:12:05]} 13. Nbd2 {[%emt 0:12:33]} d5 {[%emt 0:01:15]} 14. Rfc1 {[%emt 0:01:44]} Rfc8 {[%emt 0:01:39]} 15. Ne5 {[%emt 0:04:39]} h6 {[%emt 0:06:50]} 16. c3 {[%emt 0:08:29]} Rc7 {[%emt 0:07:03]} 17. Bb2 {[%emt 0:01:54]} Rac8 {[%emt 0:04:01]} 18. Bf1 {[%emt 0:06:41]} Nb8 {[%emt 0:01:42]} 19. Qb5 {[%emt 0:00:13]} Nc6 {[%emt 0:02:53]} 20. Qxb6 {[%emt 0:08:53]} axb6 {[%emt 0:04:26]} 1/2-1/2

[Event "IV Jugando con las Estrellas 2019"]
[Site "Santa Cruz de la Palma"]
[Date "2019.08.14"]
[Round "6.3"]
[White "Kolosowski, Mateusz"]
[Black "Roeder, Matthias"]
[Result "1-0"]
[ECO "B90"]
[WhiteElo "2458"]
[BlackElo "2373"]
[Annotator "ChessBase"]
[PlyCount "97"]
[EventDate "2019.08.09"]
[EventType "swiss"]
[EventCountry "ESP"]
[SourceTitle "playchess.com"]
[Source "ChessBase"]
[SourceQuality "1"]
[TimeControl "5400+30"]

1. e4 {[%emt 0:00:00]} c5 {[%emt 0:02:17]} 2. Nf3 {[%emt 0:00:00]} d6 {[%emt 0:00:18]} 3. d4 {[%emt 0:00:00]} cxd4 {[%emt 0:00:06]} 4. Nxd4 {[%emt 0:00:00]} Nf6 {[%emt 0:00:06]} 5. Nc3 {[%emt 0:00:00]} a6 {[%emt 0:00:04]} 6. f3 {[%emt 0:00:06]} e5 {[%emt 0:01:26]} 7. Nb3 {[%emt 0:00:12]} Be6 {[%emt 0:00:15]} 8. Be3 {[%emt 0:00:30]} h5 {[%emt 0:01:27]} 9. Nd5 {[%emt 0:00:19]} Bxd5 {[%emt 0:01:49]} 10. exd5 {[%emt 0:00:09]} Nbd7 {[%emt 0:00:11]} 11. Qd2 {[%emt 0:02:40]} Be7 {[%emt 0:08:00]} 12. Be2 {[%emt 0:05:31]} O-O {[%emt 0:03:52]} 13. O-O {[%emt 0:03:24]} Qc7 {[%emt 0:08:13]} 14. Rac1 {[%emt 0:12:29]} Rfe8 {[%emt 0:04:41]} 15. c4 {[%emt 0:16:52]} a5 {[%emt 0:07:40]} 16. Qd1 {[%emt 0:07:13]} g6 {[%emt 0:07:31]} 17. Nd2 {[%emt 0:04:22]} Nh7 {[%emt 0:00:55]} 18. Ne4 {[%emt 0:07:44]} f5 {[%emt 0:00:52]} 19. Nc3 {[%emt 0:00:04]} Bg5 {[%emt 0:00:06]} 20. Bxg5 {[%emt 0:01:24]} Nxg5 {[%emt 0:01:20]} 21. Nb5 {[%emt 0:00:34]} Qc5+ {[%emt 0:03:13]} 22. Kh1 {[%emt 0:00:02]} Re7 {[%emt 0:12:32]} 23. Qd2 {[%emt 0:03:29]} Nf7 {[%emt 0:01:03]} 24. b3 {[%emt 0:04:34]} e4 {[%emt 0:08:18]} 25. f4 {[%emt 0:00:31]} e3 {[%emt 0:01:05]} 26. Qc3 {[%emt 0:00:59]} Qb4 {[%emt 0:02:48]} 27. Qb2 {[%emt 0:04:03]} Qc5 {[%emt 0:06:05]} 28. a3 {[%emt 0:00:38]} Kh7 {[%emt 0:02:06]} 29. b4 {[%emt 0:01:22]} axb4 {[%emt 0:00:53]} 30. axb4 {[%emt 0:00:03]} Qb6 {[%emt 0:00:12]} 31. Rc2 {[%emt 0:04:27]} Re4 {[%emt 0:04:20]} 32. g3 {[%emt 0:03:05]} Nh6 {[%emt 0:00:18]} 33. Rfc1 {[%emt 0:01:03]} Ng4 {[%emt 0:00:28]} 34. c5 {[%emt 0:00:46]} dxc5 {[%emt 0:00:41]} 35. bxc5 {[%emt 0:00:02]} Qa5 {[%emt 0:00:04]} 36. Nd4 {[%emt 0:05:34]} Qa3 {[%emt 0:01:01]} 37. Ne6 {[%emt 0:02:29]} Ngf6 {[%emt 0:01:08]} 38. Ng5+ {[%emt 0:00:41]} Kh6 {[%emt 0:00:17]} 39. Qxa3 {[%emt 0:00:12]} Rxa3 {[%emt 0:00:05]} 40. Nxe4 {[%emt 0:00:40]} Nxe4 {[%emt 0:00:11]} 41. c6 {[%emt 0:00:08]} bxc6 {[%emt 0:00:18]} 42. dxc6 {[%emt 0:00:02]} Nb6 {[%emt 0:00:15]} 43. c7 {[%emt 0:01:01]} Nc8 {[%emt 0:00:08]} 44. Kg1 {[%emt 0:04:52]} h4 {[%emt 0:00:24]} 45. gxh4 {[%emt 0:00:12]} Ned6 {[%emt 0:00:11]} 46. Rc3 {[%emt 0:00:28]} Ra4 {[%emt 0:00:05]} 47. Rxe3 {[%emt 0:00:11]} Rxf4 {[%emt 0:00:06]} 48. Ba6 {[%emt 0:00:26]} Rg4+ {[%emt 0:00:41]} 49. Kh1 {[%emt 0:00:38]} 1-0

[Event "IV Jugando con las Estrellas 2019"]
[Site "Santa Cruz de la Palma"]
[Date "2019.08.14"]
[Round "6.4"]
[White "Minzer, Claudio Javier"]
[Black "Bressac, Stephane"]
[Result "1/2-1/2"]
[ECO "E69"]
[WhiteElo "2446"]
[BlackElo "2348"]
[Annotator "NA"]
[PlyCount "26"]
[EventDate "2019.08.09"]
[EventType "swiss"]
[EventCountry "ESP"]
[SourceTitle "playchess.com"]
[Source "ChessBase"]
[SourceQuality "1"]
[TimeControl "5400+30"]

1. Nf3 {[%emt 0:00:00]} d6 {[%emt 0:00:31]} 2. d4 {[%emt 0:01:45]} Nf6 {[%emt 0:00:07]} 3. c4 {[%emt 0:00:40]} g6 {[%emt 0:00:09]} 4. Nc3 {[%emt 0:00:46]} Nbd7 {[%emt 0:00:07]} 5. g3 {[%emt 0:00:41]} Bg7 {[%emt 0:00:06]} 6. Bg2 {[%emt 0:00:04]} O-O {[%emt 0:00:22]} 7. O-O {[%emt 0:00:05]} e5 {[%emt 0:00:21]} 8. h3 {[%emt 0:00:30]} c6 {[%emt 0:00:18]} 9. e4 {[%emt 0:02:42]} exd4 {[%emt 0:00:13]} 10. Nxd4 {[%emt 0:00:17]} Qb6 {[%emt 0:00:13]} 11. Nc2 {[%emt 0:06:03]} Ne8 {[%emt 0:05:47]} 12. Qe2 {[%emt 0:05:46]} Nc5 {[%emt 0:02:03]} 13. Rd1 {[%emt 0:05:05]} f5 {[%emt 0:09:20]} 1/2-1/2

[Event "IV Jugando con las Estrellas 2019"]
[Site "Santa Cruz de la Palma"]
[Date "2019.08.14"]
[Round "6.7"]
[White "Rodriguez Ferraz, Borja"]
[Black "Lemos, Damian"]
[Result "0-1"]
[ECO "A36"]
[WhiteElo "2227"]
[BlackElo "2487"]
[Annotator "ChessBase"]
[PlyCount "80"]
[EventDate "2019.08.09"]
[EventType "swiss"]
[EventCountry "ESP"]
[SourceTitle "playchess.com"]
[Source "ChessBase"]
[SourceQuality "1"]
[TimeControl "5400+30"]

1. c4 {[%emt 0:00:00]} g6 {[%emt 0:00:15]} 2. g3 {[%emt 0:00:53]} Bg7 {[%emt 0:00:35]} 3. Bg2 {[%emt 0:00:11]} c5 {[%emt 0:02:24]} 4. e3 {[%emt 0:01:41]} e6 {[%emt 0:00:57]} 5. Ne2 {[%emt 0:01:16]} Ne7 {[%emt 0:00:24]} 6. Nbc3 {[%emt 0:00:27]} Nbc6 {[%emt 0:00:49]} 7. h4 {[%emt 0:05:08]} h6 {[%emt 0:02:03]} 8. O-O {[%emt 0:05:37]} O-O {[%emt 0:02:02]} 9. b3 {[%emt 0:07:10]} d5 {[%emt 0:00:55]} 10. Bb2 {[%emt 0:00:48]} d4 {[%emt 0:04:16]} 11. Na4 {[%emt 0:00:25]} b6 {[%emt 0:02:33]} 12. exd4 {[%emt 0:03:59]} cxd4 {[%emt 0:00:32]} 13. d3 {[%emt 0:01:38]} Bb7 {[%emt 0:00:46]} 14. b4 {[%emt 0:01:02]} Qd7 {[%emt 0:00:30]} 15. Rb1 {[%emt 0:02:56]} Rad8 {[%emt 0:00:52]} 16. b5 {[%emt 0:02:40]} Ne5 {[%emt 0:03:15]} 17. Nxd4 {[%emt 0:06:55]} Bxg2 {[%emt 0:02:12]} 18. Kxg2 {[%emt 0:00:10]} Qb7+ {[%emt 0:00:54]} 19. Kh3 {[%emt 0:01:56]} Nxd3 {[%emt 0:17:47]} 20. Qxd3 {[%emt 0:02:33]} Bxd4 {[%emt 0:00:18]} 21. Bxd4 {[%emt 0:00:34]} Nf5 {[%emt 0:03:08]} 22. Qc3 {[%emt 0:06:30]} Rxd4 {[%emt 0:01:25]} 23. Rbd1 {[%emt 0:07:11]} Rfd8 {[%emt 0:00:32]} 24. Rxd4 {[%emt 0:00:30]} Rxd4 {[%emt 0:00:54]} 25. Re1 {[%emt 0:02:58]} g5 {[%emt 0:06:17]} 26. Nb2 {[%emt 0:04:41]} gxh4 {[%emt 0:04:54]} 27. Nd1 {[%emt 0:07:33]} hxg3 {[%emt 0:02:04]} 28. fxg3 {[%emt 0:00:06]} Qc7 {[%emt 0:02:09]} 29. Nf2 {[%emt 0:00:50]} Rxc4 {[%emt 0:03:56]} 30. Qf3 {[%emt 0:00:13]} Rc3 {[%emt 0:01:33]} 31. Qg4+ {[%emt 0:00:06]} Kf8 {[%emt 0:01:09]} 32. Ne4 {[%emt 0:00:08]} Rc1 {[%emt 0:01:35]} 33. Rxc1 {[%emt 0:13:24]} Qxc1 {[%emt 0:00:07]} 34. Qf3 {[%emt 0:02:30]} Nd4 {[%emt 0:01:07]} 35. Qg2 {[%emt 0:00:05]} Qd1 {[%emt 0:03:07]} 36. g4 {[%emt 0:02:11]} Qd3+ {[%emt 0:05:28]} 37. Ng3 {[%emt 0:00:47]} h5 {[%emt 0:03:33]} 38. Qa8+ {[%emt 0:03:27]} Kg7 {[%emt 0:00:08]} 39. Qxa7 {[%emt 0:01:49]} Ne2 {[%emt 0:01:31]} 40. Qc7 {[%emt 0:00:55]} hxg4+ {[%emt 0:01:10]} 0-1

[Event "IV Jugando con las Estrellas 2019"]
[Site "Santa Cruz de la Palma"]
[Date "2019.08.14"]
[Round "6.8"]
[White "Hernandez Leon, Alberto"]
[Black "Pap, Misa"]
[Result "1-0"]
[ECO "A80"]
[WhiteElo "2266"]
[BlackElo "2461"]
[Annotator "RC"]
[PlyCount "119"]
[EventDate "2019.08.09"]
[EventType "swiss"]
[EventCountry "ESP"]
[SourceTitle "playchess.com"]
[Source "ChessBase"]
[SourceQuality "1"]
[TimeControl "5400+30"]

1. d4 {[%emt 0:00:00]} f5 {[%emt 0:00:00]} 2. Bg5 {[%emt 0:00:26]} g6 {[%emt 0:06:52]} 3. Nd2 {[%emt 0:00:16]} Bg7 {[%emt 0:00:45]} 4. e4 {[%emt 0:00:31]} fxe4 {[%emt 0:00:55]} 5. Nxe4 {[%emt 0:00:05]} d5 {[%emt 0:00:05]} 6. Ng3 {[%emt 0:00:21]} c5 {[%emt 0:07:28]} 7. Nf3 {[%emt 0:00:35]} Nc6 {[%emt 0:00:24]} 8. dxc5 {[%emt 0:01:22]} Bxb2 {[%emt 0:05:53]} 9. Rb1 {[%emt 0:00:19]} Bc3+ {[%emt 0:12:53]} 10. Bd2 {[%emt 0:00:47]} Bg7 {[%emt 0:00:13]} 11. c4 {[%emt 0:09:21]} d4 {[%emt 0:01:43]} 12. h4 {[%emt 0:08:25]} Bg4 {[%emt 0:27:44]} 13. Rxb7 {[%emt 0:10:24]} Nf6 {[%emt 0:02:47]} 14. h5 {[%emt 0:31:15]} Nxh5 {[%emt 0:02:25]} 15. Nxh5 {[%emt 0:00:57]} gxh5 {[%emt 0:02:47]} 16. Qc2 {[%emt 0:03:54]} Qc8 {[%emt 0:00:51]} 17. Rb3 {[%emt 0:02:44]} Qe6+ {[%emt 0:00:40]} 18. Kd1 {[%emt 0:00:35]} d3 {[%emt 0:11:52]} 19. Rxd3 {[%emt 0:02:54]} O-O {[%emt 0:02:38]} 20. Be2 {[%emt 0:01:25]} Rad8 {[%emt 0:02:22]} 21. Rd5 {[%emt 0:05:59]} Qf6 {[%emt 0:03:13]} 22. Rhxh5 {[%emt 0:12:40]} Bxh5 {[%emt 0:01:17]} 23. Rxh5 {[%emt 0:00:02]} Qa1+ {[%emt 0:00:27]} 24. Qc1 {[%emt 0:00:01]} Qxa2 {[%emt 0:00:22]} 25. Qc2 {[%emt 0:00:11]} Qa1+ {[%emt 0:00:38]} 26. Qc1 {[%emt 0:00:01]} Qa4+ {[%emt 0:02:45]} 27. Ke1 {[%emt 0:00:50]} Nd4 {[%emt 0:00:24]} 28. Bd1 {[%emt 0:01:42]} Qd7 {[%emt 0:01:07]} 29. Be3 {[%emt 0:01:30]} Nf5 {[%emt 0:01:11]} 30. Bc2 {[%emt 0:00:01]} e6 {[%emt 0:00:20]} 31. g4 {[%emt 0:00:50]} Nxe3 {[%emt 0:00:15]} 32. Qxe3 {[%emt 0:00:01]} h6 {[%emt 0:00:38]} 33. Kf1 {[%emt 0:00:34]} Qc6 {[%emt 0:00:58]} 34. Be4 {[%emt 0:00:09]} Qc7 {[%emt 0:00:07]} 35. Bc2 {[%emt 0:01:19]} Qc6 {[%emt 0:00:45]} 36. Be4 {[%emt 0:00:20]} Qe8 {[%emt 0:00:00]} 37. Kg2 {[%emt 0:02:30]} a5 {[%emt 0:00:32]} 38. Bc2 {[%emt 0:00:17]} Qc6 {[%emt 0:00:44]} 39. Be4 {[%emt 0:00:01]} Qc7 {[%emt 0:00:10]} 40. Bc2 {[%emt 0:00:06]} Rf4 {[%emt 0:00:28]} 41. Qxe6+ {[%emt 0:00:15]} Qf7 {[%emt 0:00:01]} 42. Qxf7+ {[%emt 0:01:18]} Kxf7 {[%emt 0:01:05]} 43. Kg3 {[%emt 0:00:00]} Rf6 {[%emt 0:00:47]} 44. c6 {[%emt 0:00:17]} a4 {[%emt 0:00:51]} 45. Ne5+ {[%emt 0:00:41]} Ke7 {[%emt 0:00:02]} 46. Bxa4 {[%emt 0:01:13]} Kd6 {[%emt 0:00:03]} 47. Nd3 {[%emt 0:00:50]} Kc7 {[%emt 0:00:20]} 48. Nb4 {[%emt 0:00:07]} Rf7 {[%emt 0:00:57]} 49. Rb5 {[%emt 0:00:27]} Kd6 {[%emt 0:00:36]} 50. c5+ {[%emt 0:01:16]} Ke5 {[%emt 0:00:05]} 51. Bb3 {[%emt 0:01:08]} Rc7 {[%emt 0:00:42]} 52. Rb7 {[%emt 0:00:21]} Kd4 {[%emt 0:00:35]} 53. f4 {[%emt 0:00:24]} Rxb7 {[%emt 0:02:00]} 54. cxb7 {[%emt 0:00:04]} Ke4 {[%emt 0:00:36]} 55. Bc2+ {[%emt 0:00:34]} Ke3 {[%emt 0:00:04]} 56. Nc6 {[%emt 0:00:31]} Rf8 {[%emt 0:00:07]} 57. b8=Q {[%emt 0:00:30]} Rxb8 {[%emt 0:00:27]} 58. Nxb8 {[%emt 0:00:01]} Bf8 {[%emt 0:00:05]} 59. Nd7 {[%emt 0:00:48]} Be7 {[%emt 0:00:04]} 60. f5 {[%emt 0:00:13]} 1-0

[Event "IV Jugando con las Estrellas 2019"]
[Site "Santa Cruz de la Palma"]
[Date "2019.08.15"]
[Round "7.3"]
[White "Lemos, Damian"]
[Black "Capote Robayna, Nathaniel"]
[Result "1-0"]
[ECO "A28"]
[WhiteElo "2487"]
[BlackElo "2200"]
[Annotator "ChessBase"]
[PlyCount "27"]
[EventDate "2019.08.09"]
[EventType "swiss"]
[EventCountry "ESP"]
[SourceTitle "playchess.com"]
[Source "ChessBase"]
[SourceQuality "1"]
[TimeControl "5400+30"]

1. c4 {[%emt 0:00:00]} Nf6 {[%emt 0:00:05]} 2. Nc3 {[%emt 0:00:00]} e5 {[%emt 0:00:29]} 3. Nf3 {[%emt 0:00:06]} Nc6 {[%emt 0:00:12]} 4. e4 {[%emt 0:00:16]} Bc5 {[%emt 0:00:44]} 5. Nxe5 {[%emt 0:00:21]} Bxf2+ {[%emt 0:09:27]} 6. Kxf2 {[%emt 0:00:54]} Nxe5 {[%emt 0:00:07]} 7. d4 {[%emt 0:00:10]} Neg4+ {[%emt 0:08:48]} 8. Kg1 {[%emt 0:01:00]} d6 {[%emt 0:03:39]} 9. h3 {[%emt 0:01:44]} Nh6 {[%emt 0:02:06]} 10. Bg5 {[%emt 0:03:53]} c6 {[%emt 0:02:14]} 11. Qf3 {[%emt 0:02:42]} Nhg8 {[%emt 0:02:01]} 12. Rd1 {[%emt 0:06:10]} h6 {[%emt 0:03:24]} 13. Bf4 {[%emt 0:01:14]} Nh7 {[%emt 0:03:56]} 14. Qg3 {[%emt 0:00:31]} 1-0

[Event "IV Jugando con las Estrellas 2019"]
[Site "Santa Cruz de la Palma"]
[Date "2019.08.15"]
[Round "7.6"]
[White "Bressac, Stephane"]
[Black "Alonso Bouza, Julio Javier"]
[Result "0-1"]
[ECO "B07"]
[WhiteElo "2345"]
[BlackElo "2393"]
[Annotator "ChessBase"]
[PlyCount "68"]
[EventDate "2019.08.09"]
[EventType "swiss"]
[EventCountry "ESP"]
[SourceTitle "playchess.com"]
[Source "ChessBase"]
[SourceQuality "1"]
[TimeControl "5400+30"]

1. e4 {[%emt 0:00:18]} d6 {[%emt 0:00:00]} 2. d4 {[%emt 0:01:02]} Nf6 {[%emt 0:00:00]} 3. Nc3 {[%emt 0:00:08]} g6 {[%emt 0:00:00]} 4. g3 {[%emt 0:00:47]} Bg7 {[%emt 0:00:16]} 5. Bg2 {[%emt 0:00:08]} O-O {[%emt 0:00:17]} 6. Nge2 {[%emt 0:00:31]} e5 {[%emt 0:01:02]} 7. h3 {[%emt 0:02:23]} c6 {[%emt 0:00:13]} 8. a4 {[%emt 0:00:47]} a5 {[%emt 0:00:28]} 9. Be3 {[%emt 0:00:42]} Na6 {[%emt 0:03:10]} 10. O-O {[%emt 0:00:11]} Nb4 {[%emt 0:00:16]} 11. f4 {[%emt 0:02:10]} Be6 {[%emt 0:08:44]} 12. f5 {[%emt 0:05:58]} Bc4 {[%emt 0:01:32]} 13. g4 {[%emt 0:00:09]} exd4 {[%emt 0:12:53]} 14. Bxd4 {[%emt 0:03:12]} Re8 {[%emt 0:04:27]} 15. g5 {[%emt 0:10:51]} Bxe2 {[%emt 0:05:02]} 16. Nxe2 {[%emt 0:10:07]} Nxe4 {[%emt 0:04:51]} 17. fxg6 {[%emt 0:06:32]} hxg6 {[%emt 0:02:57]} 18. Bxg7 {[%emt 0:00:32]} Kxg7 {[%emt 0:00:53]} 19. Qd4+ {[%emt 0:01:45]} Kg8 {[%emt 0:01:30]} 20. Bxe4 {[%emt 0:00:14]} Qxg5+ {[%emt 0:25:37]} 21. Kh1 {[%emt 0:01:07]} Nxc2 {[%emt 0:05:18]} 22. Bxc2 {[%emt 0:03:12]} Rxe2 {[%emt 0:00:10]} 23. Rf2 {[%emt 0:00:10]} Rae8 {[%emt 0:10:00]} 24. Raf1 {[%emt 0:19:14]} Qg3 {[%emt 0:00:43]} 25. Bd3 {[%emt 0:09:57]} Qxh3+ {[%emt 0:01:12]} 26. Kg1 {[%emt 0:00:21]} Qg3+ {[%emt 0:00:36]} 27. Kh1 {[%emt 0:00:08]} Qh3+ {[%emt 0:00:53]} 28. Kg1 {[%emt 0:00:01]} R2e3 {[%emt 0:06:44]} 29. Rh2 {[%emt 0:10:48]} Rxd3 {[%emt 0:00:08]} 30. Qf6 {[%emt 0:00:57]} Qg4+ {[%emt 0:00:19]} 31. Kh1 {[%emt 0:00:47]} Qe4+ {[%emt 0:00:12]} 32. Rg2 {[%emt 0:00:23]} Qe6 {[%emt 0:01:35]} 33. Qg5 {[%emt 0:00:46]} Qh3+ {[%emt 0:00:30]} 34. Kg1 {[%emt 0:00:07]} Qe3+ {[%emt 0:00:08]} 0-1